fUST/lending_fUST_20240705
["ID","MTS","AMOUNT","RATE_DAILY","PERIOD"]
[331153962,1720109444179,-500.0,0.00013972,2]
[331153964,1720109444188,-500.0,0.00013972,2]
[331153966,1720109444198,-500.0,0.00013972,2]
[331153968,1720109444207,-500.0,0.00013972,2]
[331153970,1720109444218,-500.0,0.00013972,2]
[331153971,1720109444227,-500.0,0.00013972,2]
[331153973,1720109444238,-500.0,0.00013972,2]
[331153975,1720109444248,-500.0,0.00013972,2]
[331153977,1720109444258,-500.0,0.00013972,2]
[331153979,1720109444268,-500.0,0.00013972,2]
[331153980,1720109444278,-500.0,0.00013972,2]
[331153982,1720109444288,-500.0,0.00013972,2]
[331153984,1720109444298,-500.0,0.00013972,2]
[331153986,1720109444308,-500.0,0.00013972,2]
[331153988,1720109444318,-500.0,0.00013972,2]
[331153990,1720109444328,-208.91728727,0.00013972,2]
[331153992,1720109444338,-500.0,0.00013972,2]
[331153994,1720109444347,-500.0,0.00013972,2]
[331153996,1720109444357,-766.31,0.00013972,2]
[331153998,1720109444367,-500.0,0.00013972,2]
[331154000,1720109444377,-500.0,0.00013972,2]
[331154002,1720109444386,-500.0,0.00013972,2]
[331154004,1720109444396,-504.17369231,0.00013972,2]
[331154006,1720109444405,-500.0,0.00013972,2]
[331154008,1720109444416,-500.0,0.00013972,2]
[331154010,1720109444425,-9340.89,0.00013972,2]
[331154012,1720109444435,-500.0,0.00013972,2]
[331154014,1720109444446,-558.58851713,0.00013972,2]
[331154016,1720109444455,-500.0,0.00013972,2]
[331154018,1720109444466,-500.0,0.00013972,2]
[331154020,1720109444476,-501.37314674,0.00013972,2]
[331154022,1720109444485,-500.0,0.00013972,2]
[331154024,1720109444494,-520.48664714,0.00013972,2]
[331154026,1720109444503,-647.0,0.00013972,2]
[331154028,1720109444513,-362.53857526,0.00013972,2]
[331154030,1720109444522,-500.0,0.00013972,2]
[331154032,1720109444532,-441.1317508,0.00013972,2]
[331154034,1720109444542,-500.0,0.00013972,2]
[331154036,1720109444551,-500.0,0.00013972,2]
[331154038,1720109444561,-500.0,0.00013972,2]
[331154040,1720109444570,-500.0,0.00013972,2]
[331154042,1720109444580,-500.0,0.00013972,2]
[331154044,1720109444590,-500.0,0.00013972,2]
[331154046,1720109444600,-264.55401793,0.00013972,2]
[331154048,1720109444610,-500.0,0.00013972,2]
[331154050,1720109444620,-500.0,0.00013972,2]
[331154052,1720109444630,-500.0,0.00013972,2]
[331154054,1720109444640,-500.0,0.00013972,2]
[331154055,1720109444650,-1376.31,0.00013972,2]
[331154056,1720109444659,-569.97973244,0.00013972,2]
[331154057,1720109444669,-500.0,0.00013972,2]
[331154058,1720109444678,-500.0,0.00013972,2]
[331154059,1720109444688,-500.0,0.00013972,2]
[331154060,1720109444697,-500.0,0.00013972,2]
[331154061,1720109444707,-500.0,0.00013972,2]
[331154062,1720109444717,-500.0,0.00013972,2]
[331154063,1720109444727,-500.0,0.00013972,2]
[331154064,1720109444736,-500.0,0.00013972,2]
[331154065,1720109444746,-500.0,0.00013972,2]
[331154066,1720109444755,-505.97644375,0.00013972,2]
[331154067,1720109444765,-500.0,0.00013972,2]
[331154068,1720109444775,-1890.39,0.00013972,2]
[331154069,1720109444784,-500.0,0.00013972,2]
[331154070,1720109444794,-283.07585689,0.00013972,2]
[331154071,1720109444804,-500.0,0.00013972,2]
[331154072,1720109444813,-500.0,0.00013972,2]
[331154073,1720109444822,-500.0,0.00013972,2]
[331154074,1720109444832,-505.20988298,0.00013972,2]
[331154075,1720109444842,-500.0,0.00013972,2]
[331154076,1720109444852,-500.0,0.00013972,2]
[331154077,1720109444861,-500.0,0.00013972,2]
[331154078,1720109444871,-13213.43,0.00013972,2]
[331154079,1720109444881,-500.0,0.00013972,2]
[331154080,1720109444891,-1574.12,0.00013972,2]
[331154081,1720109444900,-500.0,0.00013972,2]
[331154082,1720109444910,-347.45257925,0.00013972,2]
[331154083,1720109444920,-500.0,0.00013972,2]
[331154084,1720109444929,-500.0,0.00013972,2]
[331154085,1720109444940,-1176.65,0.00013972,2]
[331154086,1720109444950,-500.0,0.00013972,2]
[331154087,1720109444959,-500.0,0.00013972,2]
[331154088,1720109444971,-500.0,0.00013972,2]
[331154089,1720109444981,-500.0,0.00013972,2]
[331154090,1720109444991,-500.0,0.00013972,2]
[331154091,1720109445001,-500.0,0.00013972,2]
[331154092,1720109445010,-1193.77,0.00013972,2]
[331154093,1720109445021,-500.0,0.00013972,2]
[331154094,1720109445033,-500.0,0.00013972,2]
[331154095,1720109445045,-1600.8,0.00013972,2]
[331154096,1720109445055,-598.65,0.00013972,2]
[331154097,1720109445065,-602.96,0.00013972,2]
[331154098,1720109445076,-500.0,0.00013972,2]
[331154099,1720109445086,-500.0,0.00013972,2]
[331154100,1720109445096,-500.0,0.00013972,2]
[331154101,1720109445107,-524.10867881,0.00013972,2]
[331154102,1720109445118,-500.0,0.00013972,2]
[331154103,1720109445130,-500.0,0.00013972,2]
[331154104,1720109445140,-503.19946116,0.00013972,2]
[331154105,1720109445258,-509.99978689,0.00013972,2]
[331154106,1720109445280,-500.0,0.00013972,2]
[331154107,1720109445290,-522.48,0.00013972,2]
[331154108,1720109445300,-500.0,0.00013972,2]
[331154109,1720109445309,-500.0,0.00013972,2]
[331154110,1720109445318,-500.0,0.00013972,2]
[331154111,1720109445328,-500.0,0.00013972,2]
[331154112,1720109445337,-500.0,0.00013972,2]
[331154113,1720109445347,-500.0,0.00013972,2]
[331154114,1720109445356,-1011.39,0.00013972,2]
[331154115,1720109445365,-500.0,0.00013972,2]
[331154116,1720109445375,-151.0,0.00013972,2]
[331154117,1720109445385,-500.0,0.00013972,2]
[331154118,1720109445395,-500.0,0.00013972,2]
[331154119,1720109445404,-500.0,0.00013972,2]
[331154120,1720109445414,-507.69000949,0.00013972,2]
[331154121,1720109445424,-500.0,0.00013972,2]
[331154122,1720109445435,-500.0,0.00013972,2]
[331154123,1720109445444,-173.572883,0.00013972,2]
[331154124,1720109445454,-500.0,0.00013972,2]
[331154125,1720109445464,-550.802802,0.00013972,2]
[331154126,1720109445474,-852.52,0.00013972,2]
[331154127,1720109445484,-500.0,0.00013972,2]
[331154128,1720109445493,-151.0,0.00013972,2]
[331154129,1720109445502,-500.0,0.00013972,2]
[331154130,1720109445511,-530.73782236,0.00013972,2]
[331154131,1720109445521,-151.0,0.00013972,2]
[331154132,1720109445530,-500.0,0.00013972,2]
[331154133,1720109445539,-500.0,0.00013972,2]
[331154134,1720109445549,-500.0,0.00013972,2]
[331154135,1720109445559,-500.0,0.00013972,2]
[331154136,1720109445568,-500.0,0.00013972,2]
[331154137,1720109445577,-507.28663487,0.00013972,2]
[331154138,1720109445587,-510.71549264,0.00013972,2]
[331154139,1720109445596,-500.0,0.00013972,2]
[331154140,1720109445605,-151.0,0.00013972,2]
[331154141,1720109445615,-500.0,0.00013972,2]
[331154142,1720109445624,-500.0,0.00013972,2]
[331154143,1720109445633,-500.0,0.00013972,2]
[331154144,1720109445642,-500.0,0.00013972,2]
[331154145,1720109445651,-500.0,0.00013972,2]
[331154146,1720109445660,-921.53,0.00013972,2]
[331154147,1720109445669,-756.12,0.00013972,2]
[331154148,1720109445679,-151.0,0.00013972,2]
[331154149,1720109445688,-500.0,0.00013972,2]
[331154150,1720109445697,-553.63665553,0.00013972,2]
[331154151,1720109445706,-151.0,0.00013972,2]
[331154152,1720109445718,-805.14,0.00013972,2]
[331154153,1720109445728,-500.0,0.00013972,2]
[331154154,1720109445737,-500.0,0.00013972,2]
[331154155,1720109445747,-151.0,0.00013972,2]
[331154156,1720109445756,-151.0,0.00013972,2]
[331154157,1720109445769,-500.0,0.00013972,2]
[331154158,1720109445778,-935.13,0.00013972,2]
[331154159,1720109445787,-500.0,0.00013972,2]
[331154160,1720109445796,-500.0,0.00013972,2]
[331154161,1720109445806,-500.0,0.00013972,2]
[331154162,1720109445815,-206.08793187,0.00013972,2]
[331154163,1720109445825,-151.0,0.00013972,2]
[331154164,1720109445835,-831.53,0.00013972,2]
[331154165,1720109445844,-368.924704,0.00013972,2]
[331154166,1720109445853,-500.0,0.00013972,2]
[331154167,1720109445863,-500.0,0.00013972,2]
[331154168,1720109445872,-415.06377454,0.00013972,2]
[331154169,1720109445882,-500.0,0.00013972,2]
[331154171,1720109445891,-500.0,0.00013972,2]
[331154172,1720109445900,-500.0,0.00013972,2]
[331154173,1720109445909,-368.924704,0.00013972,2]
[331154174,1720109445919,-2488.62,0.00013972,2]
[331154175,1720109445929,-151.0,0.00013972,2]
[331154176,1720109445938,-500.0,0.00013972,2]
[331154177,1720109445947,-500.0,0.00013972,2]
[331154179,1720109445956,-500.0,0.00013972,2]
[331154181,1720109445967,-155.552447,0.00013972,2]
[331154182,1720109445976,-500.0,0.00013972,2]
[331154184,1720109445987,-500.0,0.00013972,2]
[331154186,1720109445996,-500.0,0.00013972,2]
[331154188,1720109446006,-505.27918505,0.00013972,2]
[331154190,1720109446016,-500.0,0.00013972,2]
[331154191,1720109446025,-500.0,0.00013972,2]
[331154192,1720109446040,-500.0,0.00013972,2]
[331154193,1720109446049,-3237.42,0.00013972,2]
[331154194,1720109446059,-500.0,0.00013972,2]
[331154195,1720109446068,-500.0,0.00013972,2]
[331154197,1720109446079,-653.93,0.00013972,2]
[331154199,1720109446089,-250.469061,0.00013972,2]
[331154201,1720109446099,-500.0,0.00013972,2]
[331154202,1720109446109,-500.0,0.00013972,2]
[331154204,1720109446119,-500.0,0.00013972,2]
[331154205,1720109446130,-1727.6,0.00013972,2]
[331154206,1720109446139,-500.0,0.00013972,2]
[331154207,1720109446150,-500.0,0.00013972,2]
[331154208,1720109446158,-500.0,0.00013972,2]
[331154209,1720109446168,-509.19799053,0.00013972,2]
[331154210,1720109446176,-728.38,0.00013972,2]
[331154211,1720109446185,-500.0,0.00013972,2]
[331154212,1720109446195,-500.0,0.00013972,2]
[331154213,1720109446205,-500.0,0.00013972,2]
[331154214,1720109446214,-514.55998148,0.00013972,2]
[331154215,1720109446224,-513.57,0.00013972,2]
[331154216,1720109446233,-500.0,0.00013972,2]
[331154217,1720109446243,-500.0,0.00013972,2]
[331154218,1720109446252,-1449.27,0.00013972,2]
[331154220,1720109446262,-509.76,0.00013972,2]
[331154222,1720109446271,-1134.15,0.00013972,2]
[331154224,1720109446280,-500.0,0.00013972,2]
[331154225,1720109446290,-500.0,0.00013972,2]
[331154227,1720109446299,-500.0,0.00013972,2]
[331154229,1720109446308,-458.74982513,0.00013972,2]
[331154230,1720109446317,-500.0,0.00013972,2]
[331154232,1720109446326,-247.007352,0.00013972,2]
[331154234,1720109446335,-500.0,0.00013972,2]
[331154236,1720109446344,-500.0,0.00013972,2]
[331154238,1720109446354,-247.007352,0.00013972,2]
[331154239,1720109446363,-516.17711193,0.00013972,2]
[331154241,1720109446372,-6379.07,0.00013972,2]
[331154243,1720109446381,-783.46,0.00013972,2]
[331154245,1720109446390,-500.0,0.00013972,2]
[331154247,1720109446399,-500.0,0.00013972,2]
[331154248,1720109446408,-500.0,0.00013972,2]
[331154250,1720109446417,-844.836982,0.00013972,2]
[331154252,1720109446426,-500.0,0.00013972,2]
[331154254,1720109446435,-910.39,0.00013972,2]
[331154255,1720109446444,-844.836982,0.00013972,2]
[331154257,1720109446453,-500.0,0.00013972,2]
[331154259,1720109446462,-384.226413,0.00013972,2]
[331154261,1720109446472,-500.0,0.00013972,2]
[331154263,1720109446481,-384.226413,0.00013972,2]
[331154266,1720109446490,-3431.09,0.00013972,2]
[331154269,1720109446499,-500.0,0.00013972,2]
[331154271,1720109446508,-500.0,0.00013972,2]
[331154274,1720109446517,-500.0,0.00013972,2]
[331154277,1720109446525,-500.0,0.00013972,2]
[331154279,1720109446534,-614.39,0.00013972,2]
[331154281,1720109446543,-500.0,0.00013972,2]
[331154282,1720109446552,-500.0,0.00013972,2]
[331154284,1720109446561,-500.0,0.00013972,2]
[331154286,1720109446571,-500.0,0.00013972,2]
[331154287,1720109446580,-500.0,0.00013972,2]
[331154289,1720109446589,-500.0,0.00013972,2]
[331154290,1720109446598,-500.0,0.00013972,2]
[331154291,1720109446608,-1252.94,0.00013972,2]
[331154292,1720109446617,-500.0,0.00013972,2]
[331154293,1720109446627,-500.0,0.00013972,2]
[331154294,1720109446636,-500.0,0.00013972,2]
[331154295,1720109446645,-500.0,0.00013972,2]
[331154296,1720109446653,-500.0,0.00013972,2]
[331154297,1720109446663,-20826.01,0.00013972,2]
[331154299,1720109446672,-500.0,0.00013972,2]
[331154301,1720109446681,-591.36,0.00013972,2]
[331154303,1720109446690,-332.968496,0.00013972,2]
[331154305,1720109446699,-500.0,0.00013972,2]
[331154306,1720109446708,-394.077144,0.00013972,2]
[331154308,1720109446719,-332.968496,0.00013972,2]
[331154310,1720109446729,-5225.04,0.00013972,2]
[331154312,1720109446738,-500.0,0.00013972,2]
[331154314,1720109446747,-500.0,0.00013972,2]
[331154316,1720109446756,-151.0,0.00013972,2]
[331154318,1720109446765,-504.50360655,0.00013972,2]
[331154319,1720109446775,-500.0,0.00013972,2]
[331154321,1720109446784,-2101.7,0.00013972,2]
[331154323,1720109446793,-500.0,0.00013972,2]
[331154325,1720109446802,-500.0,0.00013972,2]
[331154327,1720109446812,-500.0,0.00013972,2]
[331154328,1720109446821,-500.0,0.00013972,2]
[331154330,1720109446831,-3565.38,0.00013972,2]
[331154332,1720109446840,-6208.16,0.00013972,2]
[331154334,1720109446849,-500.0,0.00013972,2]
[331154336,1720109446859,-608.39,0.00013972,2]
[331154338,1720109446868,-500.0,0.00013972,2]
[331154340,1720109446877,-500.0,0.00013972,2]
[331154342,1720109446886,-500.0,0.00013972,2]
[331154344,1720109446896,-1115.43,0.00013972,2]
[331154346,1720109446905,-500.0,0.00013972,2]
[331154348,1720109446914,-1529.83,0.00013972,2]
[331154350,1720109446923,-500.0,0.00013972,2]
[331154352,1720109446932,-500.0,0.00013972,2]
[331154354,1720109446942,-500.0,0.00013972,2]
[331154356,1720109446951,-500.0,0.00013972,2]
[331154358,1720109446959,-1413.12,0.00013972,2]
[331154360,1720109446971,-1169.07,0.00013972,2]
[331154362,1720109446980,-500.0,0.00013972,2]
[331154364,1720109446989,-500.0,0.00013972,2]
[331154365,1720109446998,-500.0,0.00013972,2]
[331154367,1720109447009,-500.0,0.00013972,2]
[331154369,1720109447018,-500.0,0.00013972,2]
[331154371,1720109447027,-6194.17,0.00013972,2]
[331154373,1720109447042,-500.0,0.00013972,2]
[331154375,1720109447052,-500.0,0.00013972,2]
[331154377,1720109447061,-500.0,0.00013972,2]
[331154379,1720109447070,-500.0,0.00013972,2]
[331154380,1720109447080,-500.0,0.00013972,2]
[331154381,1720109447093,-500.0,0.00013972,2]
[331154382,1720109447102,-1221.79,0.00013972,2]
[331154384,1720109447112,-604.41,0.00013972,2]
[331154386,1720109447124,-500.0,0.00013972,2]
[331154387,1720109447134,-1187.86,0.00013972,2]
[331154388,1720109447143,-500.0,0.00013972,2]
[331154389,1720109447155,-155.0,0.00014,2]
[331154390,1720109447165,-151.0,0.00014,2]
[331154391,1720109447175,-159.244579,0.00014,2]
[331154392,1720109447185,-162.352123,0.00014,2]
[331154393,1720109447194,-6076.9012323,0.000142,2]
[331154394,1720109447204,-890.0,0.00014244,2]
[331154395,1720109447216,-890.0,0.00014245,2]
[331154396,1720109447226,-7019.37,0.00014246,2]
[331154397,1720109447235,-3396.26,0.00014246,2]
[331154398,1720109447245,-500.0,0.00014246,2]
[331154399,1720109447257,-771.99,0.00014246,2]
[331154400,1720109447268,-514.9279158,0.00014246,2]
[331154401,1720109447279,-515.26173715,0.00014246,2]
[331154402,1720109447288,-500.0,0.00014246,2]
[331154403,1720109447297,-500.0,0.00014246,2]
[331154404,1720109447394,-500.0,0.00014246,2]
[331154405,1720109447403,-500.0,0.00014246,2]
[331154406,1720109447414,-500.0,0.00014246,2]
[331154407,1720109447424,-500.0,0.00014246,2]
[331154408,1720109447434,-500.0,0.00014246,2]
[331154409,1720109447443,-500.0,0.00014246,2]
[331154410,1720109447453,-500.0,0.00014246,2]
[331154411,1720109447462,-500.0,0.00014246,2]
[331154412,1720109447472,-500.0,0.00014246,2]
[331154413,1720109447481,-500.0,0.00014246,2]
[331154414,1720109447492,-500.0,0.00014246,2]
[331154415,1720109447502,-500.0,0.00014246,2]
[331154416,1720109447512,-500.0,0.00014246,2]
[331154417,1720109447521,-301.73825297,0.00014246,2]
[331154418,1720109447530,-500.0,0.00014246,2]
[331154419,1720109447539,-500.0,0.00014246,2]
[331154420,1720109447549,-189.02032087,0.00014246,2]
[331154421,1720109447558,-766.31,0.00014246,2]
[331154422,1720109447568,-510.74077294,0.00014246,2]
[331154423,1720109447577,-500.0,0.00014246,2]
[331154424,1720109447586,-500.0,0.00014246,2]
[331154425,1720109447596,-418.19524978,0.00014246,2]
[331154426,1720109447605,-500.0,0.00014246,2]
[331154427,1720109447615,-277.01729115,0.00014246,2]
[331154428,1720109447624,-9340.89,0.00014246,2]
[331154429,1720109447635,-500.0,0.00014246,2]
[331154430,1720109447646,-500.0,0.00014246,2]
[331154431,1720109447655,-184.24069671,0.00014246,2]
[331154432,1720109447665,-647.0,0.00014246,2]
[331154433,1720109447675,-500.0,0.00014246,2]
[331154434,1720109447684,-500.0,0.00014246,2]
[331154435,1720109447694,-500.0,0.00014246,2]
[331154436,1720109447706,-500.0,0.00014246,2]
[331154437,1720109447716,-500.0,0.00014246,2]
[331154438,1720109447729,-500.0,0.00014246,2]
[331154439,1720109447739,-515.16589376,0.00014246,2]
[331154440,1720109447751,-500.0,0.00014246,2]
[331154441,1720109447760,-500.0,0.00014246,2]
[331154442,1720109447770,-500.0,0.00014246,2]
[331154443,1720109447779,-500.0,0.00014246,2]
[331154444,1720109447788,-1376.31,0.00014246,2]
[331154445,1720109447798,-500.0,0.00014246,2]
[331154446,1720109447807,-500.0,0.00014246,2]
[331154447,1720109447817,-500.0,0.00014246,2]
[331154448,1720109447826,-500.0,0.00014246,2]
[331154449,1720109447835,-500.0,0.00014246,2]
[331154450,1720109447844,-500.0,0.00014246,2]
[331154451,1720109447853,-151.0,0.00014246,2]
[331154452,1720109447863,-503.96213452,0.00014246,2]
[331154453,1720109447872,-500.0,0.00014246,2]
[331154454,1720109447882,-500.0,0.00014246,2]
[331154455,1720109447891,-500.0,0.00014246,2]
[331154456,1720109447901,-1890.39,0.00014246,2]
[331154457,1720109447911,-500.0,0.00014246,2]
[331154458,1720109447920,-500.0,0.00014246,2]
[331154459,1720109447930,-500.0,0.00014246,2]
[331154460,1720109447939,-500.0,0.00014246,2]
[331154461,1720109447949,-500.0,0.00014246,2]
[331154462,1720109447958,-500.0,0.00014246,2]
[331154463,1720109447970,-500.0,0.00014246,2]
[331154464,1720109447979,-13213.43,0.00014246,2]
[331154465,1720109447988,-500.0,0.00014246,2]
[331154466,1720109447998,-1574.12,0.00014246,2]
[331154467,1720109448008,-151.0,0.00014246,2]
[331154468,1720109448017,-151.0,0.00014246,2]
[331154469,1720109448027,-500.0,0.00014246,2]
[331154470,1720109448039,-500.0,0.00014246,2]
[331154471,1720109448048,-500.0,0.00014246,2]
[331154472,1720109448062,-1176.65,0.00014246,2]
[331154473,1720109448072,-500.0,0.00014246,2]
[331154474,1720109448081,-510.81311654,0.00014246,2]
[331154475,1720109448090,-500.0,0.00014246,2]
[331154476,1720109448102,-500.0,0.00014246,2]
[331154477,1720109448111,-500.0,0.00014246,2]
[331154478,1720109448120,-1193.77,0.00014246,2]
[331154479,1720109448130,-500.0,0.00014246,2]
[331154480,1720109448140,-1600.8,0.00014246,2]
[331154481,1720109448150,-598.65,0.00014246,2]
[331154482,1720109448160,-247.928671,0.00014246,2]
[331154483,1720109448169,-602.96,0.00014246,2]
[331154484,1720109448178,-500.0,0.00014246,2]
[331154485,1720109448187,-507.71993396,0.00014246,2]
[331154486,1720109448197,-500.0,0.00014246,2]
[331154487,1720109448206,-500.0,0.00014246,2]
[331154488,1720109448216,-500.0,0.00014246,2]
[331154489,1720109448227,-500.0,0.00014246,2]
[331154490,1720109448237,-522.48,0.00014246,2]
[331154491,1720109448247,-500.0,0.00014246,2]
[331154492,1720109448256,-500.0,0.00014246,2]
[331154493,1720109448266,-637.97107105,0.00014246,2]
[331154494,1720109448275,-500.0,0.00014246,2]
[331154495,1720109448285,-500.0,0.00014246,2]
[331154496,1720109448295,-1011.39,0.00014246,2]
[331154497,1720109448304,-506.81045856,0.00014246,2]
[331154498,1720109448314,-500.0,0.00014246,2]
[331154499,1720109448324,-504.14166719,0.00014246,2]
[331154500,1720109448334,-500.0,0.00014246,2]
[331154501,1720109448343,-500.0,0.00014246,2]
[331154502,1720109448352,-852.52,0.00014246,2]
[331154503,1720109448362,-500.0,0.00014246,2]
[331154504,1720109448371,-500.0,0.00014246,2]
[331154505,1720109448380,-151.0,0.00014246,2]
[331154506,1720109448390,-500.0,0.00014246,2]
[331154507,1720109448399,-500.0,0.00014246,2]
[331154508,1720109448408,-500.0,0.00014246,2]
[331154509,1720109448417,-500.0,0.00014246,2]
[331154510,1720109448426,-500.0,0.00014246,2]
[331154511,1720109448436,-151.0,0.00014246,2]
[331154512,1720109448445,-500.0,0.00014246,2]
[331154513,1720109448454,-500.0,0.00014246,2]
[331154514,1720109448464,-508.09458908,0.00014246,2]
[331154515,1720109448474,-453.93472624,0.00014246,2]
[331154516,1720109448483,-921.53,0.00014246,2]
[331154517,1720109448492,-756.12,0.00014246,2]
[331154518,1720109448501,-151.0,0.00014246,2]
[331154519,1720109448511,-500.0,0.00014246,2]
[331154520,1720109448520,-151.0,0.00014246,2]
[331154521,1720109448529,-805.14,0.00014246,2]
[331154522,1720109448539,-500.0,0.00014246,2]
[331154523,1720109448548,-500.0,0.00014246,2]
[331154524,1720109448557,-151.0,0.00014246,2]
[331154525,1720109448567,-151.0,0.00014246,2]
[331154526,1720109448576,-500.0,0.00014246,2]
[331154527,1720109448586,-935.13,0.00014246,2]
[331154528,1720109448597,-500.0,0.00014246,2]
[331154529,1720109448607,-345.80954829,0.00014246,2]
[331154530,1720109448616,-500.0,0.00014246,2]
[331154531,1720109448626,-152.694731,0.00014246,2]
[331154532,1720109448636,-831.53,0.00014246,2]
[331154533,1720109448646,-368.924704,0.00014246,2]
[331154534,1720109448655,-500.0,0.00014246,2]
[331154535,1720109448664,-500.0,0.00014246,2]
[331154536,1720109448673,-500.0,0.00014246,2]
[331154537,1720109448682,-500.0,0.00014246,2]
[331154538,1720109448691,-500.0,0.00014246,2]
[331154539,1720109448700,-368.924704,0.00014246,2]
[331154540,1720109448709,-2488.62,0.00014246,2]
[331154541,1720109448718,-151.0,0.00014246,2]
[331154542,1720109448727,-500.0,0.00014246,2]
[331154543,1720109448736,-500.0,0.00014246,2]
[331154544,1720109448746,-500.0,0.00014246,2]
[331154545,1720109448755,-500.0,0.00014246,2]
[331154546,1720109448764,-500.0,0.00014246,2]
[331154547,1720109448774,-344.81057919,0.00014246,2]
[331154548,1720109448783,-500.0,0.00014246,2]
[331154549,1720109448792,-500.0,0.00014246,2]
[331154550,1720109448802,-500.0,0.00014246,2]
[331154551,1720109448811,-3237.42,0.00014246,2]
[331154552,1720109448821,-505.11401885,0.00014246,2]
[331154553,1720109448830,-653.93,0.00014246,2]
[331154554,1720109448839,-500.0,0.00014246,2]
[331154555,1720109448848,-500.0,0.00014246,2]
[331154556,1720109448857,-500.0,0.00014246,2]
[331154557,1720109448866,-1727.6,0.00014246,2]
[331154558,1720109448876,-500.0,0.00014246,2]
[331154559,1720109448885,-500.0,0.00014246,2]
[331154560,1720109448894,-500.0,0.00014246,2]
[331154561,1720109448903,-728.38,0.00014246,2]
[331154562,1720109448914,-500.0,0.00014246,2]
[331154563,1720109448923,-500.0,0.00014246,2]
[331154564,1720109448932,-500.0,0.00014246,2]
[331154565,1720109448943,-513.57,0.00014246,2]
[331154566,1720109448952,-500.0,0.00014246,2]
[331154567,1720109448961,-506.5886752,0.00014246,2]
[331154568,1720109448971,-1449.27,0.00014246,2]
[331154569,1720109448980,-1134.15,0.00014246,2]
[331154570,1720109448990,-500.0,0.00014246,2]
[331154571,1720109448999,-500.0,0.00014246,2]
[331154572,1720109449008,-247.007352,0.00014246,2]
[331154573,1720109449018,-247.007352,0.00014246,2]
[331154574,1720109449027,-500.0,0.00014246,2]
[331154575,1720109449040,-500.0,0.00014246,2]
[331154576,1720109449049,-247.007352,0.00014246,2]
[331154577,1720109449058,-247.007352,0.00014246,2]
[331154578,1720109449067,-6379.07,0.00014246,2]
[331154579,1720109449077,-783.46,0.00014246,2]
[331154580,1720109449087,-514.74497265,0.00014246,2]
[331154581,1720109449098,-500.0,0.00014246,2]
[331154582,1720109449107,-500.0,0.00014246,2]
[331154583,1720109449118,-844.836982,0.00014246,2]
[331154584,1720109449127,-844.836982,0.00014246,2]
[331154585,1720109449136,-500.0,0.00014246,2]
[331154586,1720109449145,-151.0,0.00014246,2]
[331154587,1720109449156,-910.39,0.00014246,2]
[331154588,1720109449165,-844.836982,0.00014246,2]
[331154589,1720109449174,-844.836982,0.00014246,2]
[331154590,1720109449184,-629.77154159,0.00014246,2]
[331154591,1720109449193,-384.226413,0.00014246,2]
[331154592,1720109449203,-384.226413,0.00014246,2]